fUSD/lending_fUSD_20240523
["ID","MTS","AMOUNT","RATE_DAILY","PERIOD"]
[327785854,1716477788322,2548.73780077,0.00017009,2]
[327785860,1716477792199,2605.72998571,0.00022224,2]
[327785861,1716477795314,971.16384411,0.00022678,60]
[327785862,1716477797279,299.04252939,0.00022678,2]
[327785863,1716477801079,7521.14051331,0.00022678,2]
[327785864,1716477802460,1328.20974329,0.00022678,2]
[327785865,1716477806087,2360.0566117,0.00022224,2]
[327785866,1716477806316,744.72807731,0.00017009,2]
[327785872,1716477811161,1092.87114109,0.00022678,60]
[327785874,1716477811218,299.04252939,0.00022678,2]
[327785880,1716477821626,1822.0,0.000231,3]
[327785881,1716477823721,1640.0,0.000231,3]
[327785882,1716477824940,467274.57429438,0.00022678,2]
[327786437,1716478022912,150.0,0.00019725,2]
[327786439,1716478063681,324308.23235993,0.00019725,2]
[327786450,1716478203184,282.62961632,0.00019725,2]
[327786451,1716478227621,190.79,0.00013973,2]
[327786452,1716478232691,-151.56768367,0.00022005,2]
[327786453,1716478232701,-153.3265387,0.00022051,2]
[327786455,1716478232711,-206.16132616,0.00022112,2]
[327786456,1716478232722,-151.56768367,0.00022178,2]
[327786459,1716478232732,-179.78867159,0.00022212,2]
[327786461,1716478232742,-155.07639622,0.00022224,2]
[327786463,1716478232752,-499.99,0.00022224,2]
[327786465,1716478232762,-179.78867159,0.00022268,2]
[327786466,1716478232771,-461.9,0.00022318,2]
[327786467,1716478232782,-1669.7330284,0.00022361,2]
[327786468,1716478232794,-330.2669716,0.00022361,2]
[327786469,1716478232804,-242.36,0.00022361,2]
[327786470,1716478232813,-128.2588384,0.00022379,2]
[327786471,1716478232825,-199.7411616,0.00022379,2]
[327786472,1716478232835,-179.78867159,0.00022475,2]
[327786473,1716478232844,-179.78867159,0.00022494,2]
[327786474,1716478232854,-151.56768367,0.00022583,2]
[327786475,1716478232863,-134.5138115,0.0002262,2]
[327786476,1716478232876,-17.05387217,0.0002262,2]
[327786477,1716478232886,-179.78867159,0.00022647,2]
[327786478,1716478232896,-4508.74418318,0.00022678,2]
[327786479,1716478232906,-250.73808405,0.00022678,2]
[327786480,1716478232916,-1538.34137164,0.000227,3]
[327786481,1716478232930,-179.78867159,0.00022763,2]
[327786482,1716478232940,-250.0,0.00022788,2]
[327786483,1716478232950,-25431.865622,0.000228,2]
[327786484,1716478232960,-996.48,0.00022804,2]
[327786485,1716478232970,-150.97582735,0.00022832,2]
[327786486,1716478232980,-1538.34137165,0.000229,3]
[327786487,1716478232992,-153.55433201,0.00022941,2]
[327786488,1716478233001,-179.78867159,0.00022966,2]
[327786489,1716478233015,-38147.798434,0.00023,2]
[327786490,1716478233024,-499.99,0.00023,2]
[327786491,1716478233034,-9999.99,0.00023,2]
[327786492,1716478233043,-155.07639622,0.00023057,2]
[327786493,1716478233053,-156.04052419,0.00023136,2]
[327786494,1716478233063,-151.31470383,0.00023232,2]
[327786495,1716478233073,-159.08274939,0.00023254,2]
[327786496,1716478233083,-151.56768367,0.00023339,2]
[327786497,1716478233094,-157.47813498,0.00023351,2]
[327786498,1716478233104,-156.04052419,0.00023401,2]
[327786499,1716478233113,-17295.52368481,0.000235,2]
[327786500,1716478233162,-703.33,0.000235,2]
[327786501,1716478233176,-5539.73415037,0.000235,2]
[327786510,1716478233447,-1655.49343482,0.000235,2]
[327786519,1716478233519,-935.11650011,0.000235,2]
[327786521,1716478233531,-24734.53347489,0.000235,2]
[327786523,1716478233540,-153.55433201,0.00023503,2]
[327786525,1716478233550,-173.58682386,0.0002359,2]
[327786527,1716478233559,-2000.0,0.00023636,2]
[327786529,1716478233568,-200.0,0.00023636,2]
[327786531,1716478233578,-2854.57144349,0.00023667,2]
[327786533,1716478233588,-3872.7161,0.00023685,2]
[327786535,1716478233597,-323.27907359,0.00023702,2]
[327786537,1716478233607,-4430.00272266,0.0002371,2]
[327786539,1716478233618,-649.69362233,0.0002371,2]
[327786541,1716478233627,-138.84950026,0.00023725,2]
[327786636,1716478238993,-11.15049974,0.00023725,2]
[327786638,1716478239002,-150.0,0.00023728,2]
[327786640,1716478239015,-150.0,0.0002373,2]
[327786642,1716478239024,-150.0,0.0002373,2]
[327786643,1716478239034,-150.0,0.00023732,2]
[327786644,1716478239042,-48.20802714,0.00023737,2]
[327786645,1716478239054,-101.79197286,0.00023737,2]
[327786646,1716478239063,-150.0,0.00023737,2]
[327786647,1716478239073,-150.0,0.00023742,2]
[327786648,1716478239083,-150.0,0.00023747,2]
[327786649,1716478239092,-150.0,0.00023747,2]
[327786650,1716478239102,-150.0,0.0002375,2]
[327786651,1716478239111,-150.0,0.0002375,2]
[327786652,1716478239121,-150.0,0.00023751,2]
[327786653,1716478239130,-150.0,0.00023754,2]
[327786654,1716478239140,-6668.25404714,0.0002376,2]
[327786655,1716478239152,-3617.34665314,0.0002376,2]
[327786656,1716478239163,-1336.94275847,0.0002376,2]
[327786657,1716478239174,-285.06085,0.0002376,2]
[327786658,1716478239184,-150.0,0.00023761,2]
[327786659,1716478239193,-150.0,0.00023762,2]
[327786660,1716478239203,-150.0,0.00023767,2]
[327786661,1716478239212,-150.0,0.00023768,2]
[327786662,1716478239223,-150.0,0.0002377,2]
[327786663,1716478239232,-150.0,0.00023776,2]
[327786664,1716478239241,-150.0,0.00023782,2]
[327786665,1716478239250,-150.0,0.00023785,2]
[327786666,1716478239260,-151.56768367,0.00023788,2]
[327786667,1716478239269,-150.0,0.0002379,2]
[327786668,1716478239279,-150.0,0.00023792,2]
[327786669,1716478239288,-150.0,0.00023794,2]
[327786670,1716478239297,-213.63388468,0.00023795,2]
[327786671,1716478239309,-286.36611532,0.00023795,2]
[327786672,1716478239319,-479.08908088,0.00023795,2]
[327786673,1716478239331,-20.91091912,0.00023795,2]
[327786674,1716478239340,-500.0,0.00023795,2]
[327786675,1716478239350,-161.02908088,0.00023795,2]
[327786676,1716478239362,-338.97091912,0.00023795,2]
[327786677,1716478239372,-500.0,0.00023795,2]
[327786678,1716478239381,-500.0,0.00023795,2]
[327786679,1716478239391,-500.0,0.00023795,2]
[327786680,1716478239400,-500.0,0.00023795,2]
[327786681,1716478239416,-1013.78,0.00023795,2]
[327786682,1716478239433,-1117.66,0.00023795,2]
[327786683,1716478239443,-725.52,0.00023795,2]
[327786684,1716478239452,-548.97,0.00023795,2]
[327786685,1716478239462,-500.0,0.00023795,2]
[327786686,1716478239472,-584.90860367,0.00023795,2]
[327786702,1716478242714,-792.36139633,0.00023795,2]
[327786703,1716478242726,-500.0,0.00023795,2]
[327786704,1716478242737,-618.9,0.00023795,2]
[327786705,1716478242746,-769.45,0.00023795,2]
[327786706,1716478242767,-500.0,0.00023795,2]
[327786707,1716478242780,-727.21,0.00023795,2]
[327786708,1716478242793,-500.0,0.00023795,2]
[327786709,1716478242805,-1167.92,0.00023795,2]
[327786710,1716478242818,-618.42,0.00023795,2]
[327786711,1716478242830,-500.0,0.00023795,2]
[327786712,1716478242842,-10000.0,0.00023796,2]
[327786713,1716478242853,-150.0,0.00023797,2]
[327786714,1716478242865,-152.73750919,0.00023799,2]
[327786715,1716478242877,-633.92,0.00023799,2]
[327786716,1716478242890,-500.0,0.00023799,2]
[327786717,1716478242903,-601.44126616,0.00023799,2]
[327786718,1716478242915,-500.0,0.00023799,2]
[327786719,1716478242929,-500.0,0.00023799,2]
[327786720,1716478242946,-500.0,0.00023799,2]
[327786721,1716478242958,-500.0,0.00023799,2]
[327786722,1716478242970,-500.0,0.00023799,2]
[327786723,1716478242983,-500.0,0.00023799,2]
[327786724,1716478242995,-500.0,0.00023799,2]
[327786725,1716478243010,-500.0,0.00023799,2]
[327786726,1716478243023,-839.89,0.00023799,2]
[327786727,1716478243035,-150.0,0.000238,2]
[327786728,1716478243046,-63579.664056,0.000238,2]
[327786729,1716478243058,-117480.63002666,0.000238,2]
[327786733,1716478243493,-2090.85273406,0.000238,2]
[327786734,1716478243507,-606.92500015,0.000238,2]
[327786735,1716478243523,-681.67,0.000238,2]
[327786736,1716478243538,-129139.92223913,0.000238,2]
[327786737,1716478243550,-154.6636407,0.00023802,2]
[327786738,1716478243563,-150.0,0.00023804,2]
[327786739,1716478243575,-150.0,0.00023804,2]
[327786740,1716478243588,-150.0,0.00023814,2]
[327786741,1716478243599,-150.0,0.0002382,2]
[327786742,1716478243612,-150.0,0.0002382,2]
[327786743,1716478243623,-870.2,0.00023822,2]
[327786744,1716478243633,-150.0,0.00023823,2]
[327786745,1716478243645,-150.0,0.00023824,2]
[327786747,1716478243656,-150.0,0.00023824,2]
[327786749,1716478243668,-150.0,0.0002383,2]
[327786751,1716478243682,-150.44,0.0002383,2]
[327786753,1716478243693,-150.0,0.0002383,2]
[327786755,1716478243706,-524.39,0.0002383,2]
[327786757,1716478243718,-524.39,0.0002383,2]
[327786760,1716478243730,-150.0,0.0002383,2]
[327786762,1716478243743,-150.0,0.0002383,2]
[327786764,1716478243755,-524.39,0.0002383,2]
[327786766,1716478243766,-524.39,0.0002383,2]
[327786769,1716478243778,-150.0,0.0002383,2]
[327786771,1716478243791,-524.14,0.0002383,2]
[327786773,1716478243803,-421.02,0.0002383,2]
[327786776,1716478243816,-150.0,0.00023831,2]
[327786778,1716478243828,-150.0,0.00023835,2]
[327786780,1716478243840,-150.0,0.00023841,2]
[327786782,1716478243850,-500.0,0.00023842,2]
[327786784,1716478243860,-502.14,0.00023842,2]
[327786786,1716478243870,-500.0,0.00023842,2]
[327786788,1716478243881,-327.51,0.00023842,2]
[327786790,1716478243891,-500.0,0.00023842,2]
[327786793,1716478243902,-499.54502196,0.00023842,2]
[327786795,1716478243913,-500.0,0.00023842,2]
[327786797,1716478243927,-500.0,0.00023842,2]
[327786799,1716478243940,-729.44,0.00023842,2]
[327786801,1716478243952,-500.0,0.00023842,2]
[327786803,1716478243964,-500.0,0.00023842,2]
[327786804,1716478243975,-2865.35,0.00023842,2]
[327786805,1716478243987,-150.0,0.00023843,2]
[327786806,1716478243997,-150.0,0.00023843,2]
[327786807,1716478244011,-150.0,0.00023843,2]
[327786808,1716478244023,-150.0,0.00023848,2]
[327786809,1716478244035,-159.08274939,0.00023851,2]
[327786810,1716478244048,-150.0,0.00023852,2]
[327786811,1716478244060,-2854.57144347,0.00023853,2]
[327786812,1716478244072,-150.0,0.00023859,2]
[327786813,1716478244084,-150.0,0.0002386,2]
[327786814,1716478244095,-150.0,0.00023861,2]
[327786815,1716478244107,-150.0,0.00023864,2]
[327786817,1716478244117,-150.0,0.00023864,2]
[327786820,1716478244128,-150.0,0.00023865,2]
[327786823,1716478244140,-150.0,0.00023867,2]
[327786825,1716478244152,-150.0,0.00023869,2]
[327786828,1716478244164,-150.0,0.0002387,2]
[327786831,1716478244181,-2000.0,0.00023872,2]
[327786833,1716478244192,-200.0,0.00023872,2]
[327786836,1716478244203,-150.0,0.00023876,2]
[327786838,1716478244215,-150.0,0.00023879,2]
[327786840,1716478244227,-150.0,0.00023883,2]
[327786842,1716478244238,-156.04052419,0.00023883,2]
[327786844,1716478244251,-149.58329716,0.00023887,2]
[327786856,1716478244356,-0.41670284,0.00023887,2]
[327786858,1716478244368,-500.0,0.00023889,2]
[327786860,1716478244379,-500.0,0.00023889,2]
[327786861,1716478244391,-500.0,0.00023889,2]
[327786862,1716478244403,-500.0,0.00023889,2]
[327786863,1716478244415,-500.0,0.00023889,2]
[327786864,1716478244428,-356.65577742,0.00023889,2]
[327786865,1716478244511,87.1198802,0.0002028,2]
[327786866,1716478244623,-3528.5238725,0.0002028,2]
[327786868,1716478244635,-249.14156051,0.0002383,2]
[327786870,1716478244904,-171.87843949,0.0002383,2]
[327786871,1716478244916,-143.34422258,0.00023889,2]
[327786872,1716478244928,-500.0,0.00023889,2]
[327786873,1716478244943,-500.0,0.00023889,2]
[327786874,1716478244955,-500.0,0.00023889,2]
[327786875,1716478244966,-500.0,0.00023889,2]
[327786876,1716478244978,-500.0,0.00023889,2]
[327786877,1716478244989,-500.0,0.00023889,2]
[327786878,1716478245000,-500.0,0.00023889,2]
[327786879,1716478245016,-398.35037197,0.00023889,2]
[327786880,1716478245027,-500.0,0.00023889,2]
[327786881,1716478245039,-500.0,0.00023889,2]
[327786882,1716478245050,-500.0,0.00023889,2]
[327786883,1716478245062,-500.0,0.00023889,2]
[327786884,1716478245073,-500.0,0.00023889,2]
[327786885,1716478245084,-500.0,0.00023889,2]
[327786886,1716478245096,-500.0,0.00023889,2]
[327786887,1716478245107,-500.0,0.00023889,2]
[327786888,1716478245118,-500.0,0.00023889,2]
[327786889,1716478245129,-500.0,0.00023889,2]
[327786890,1716478245140,-1068.52,0.00023889,2]
[327786891,1716478245150,-500.0,0.00023889,2]
[327786892,1716478245161,-150.0,0.0002389,2]
[327786893,1716478245171,-150.0,0.00023895,2]
[327786894,1716478245184,-150.0,0.00023895,2]
[327786895,1716478245195,-248.86830454,0.00023896,2]
[327786896,1716478245205,-500.0,0.00023896,2]
[327786897,1716478245215,-500.0,0.00023896,2]
[327786898,1716478245226,-500.0,0.00023896,2]
[327786899,1716478245237,-531.18540718,0.00023896,2]
[327786900,1716478245247,-112.65325424,0.00023896,2]
[327786916,1716478247682,-500.0,0.00023795,2]
[327786917,1716478247692,-387.34674576,0.00023896,2]
[327786918,1716478247702,-500.0,0.00023896,2]
[327786919,1716478247711,-500.0,0.00023896,2]
[327786920,1716478247721,-500.0,0.00023896,2]
[327786921,1716478247735,-120.07968946,0.00023896,2]
[327786922,1716478247746,-379.92031054,0.00023896,2]
[327786923,1716478247756,-302.27968946,0.00023896,2]
[327786924,1716478247767,-197.72031054,0.00023896,2]
[327786925,1716478247776,-941.63,0.00023896,2]
[327786926,1716478247786,-500.0,0.00023896,2]
[327786927,1716478247796,-500.0,0.00023896,2]
[327786928,1716478247806,-531.48503155,0.00023896,2]
[327786929,1716478247815,-500.0,0.00023896,2]
[327786930,1716478247824,-500.0,0.00023896,2]
[327786931,1716478247833,-961.82,0.00023896,2]
[327786932,1716478247843,-500.0,0.00023896,2]
[327786933,1716478247853,-608.53707601,0.00023896,2]
[327786934,1716478247862,-649.65994555,0.00023896,2]
[327786935,1716478247871,-114.53763635,0.00023896,2]
[327786936,1716478247883,-385.46236365,0.00023896,2]
[327786937,1716478247892,-500.0,0.00023896,2]
[327786938,1716478247901,-411.58301913,0.00023896,2]
[327786939,1716478247911,-150.0,0.00023897,2]
[327786940,1716478247921,-150.0,0.000239,2]
[327786941,1716478247937,-2965.12773337,0.000239,2]
[327786942,1716478247946,-63618.82688385,0.000239,2]
[327786945,1716478289922,3880.70724069,0.000192,2]
[327786946,1716478315713,1064.51850023,0.00017259,2]
[327786947,1716478316699,804.06709515,0.00017259,2]
[327786948,1716478320848,155.0,0.000192,2]
[327786949,1716478338966,233.97916369,0.000192,2]
[327786950,1716478339638,329.02672788,0.000192,2]
[327786951,1716478424117,101425.7527352,0.00013,2]
[327786952,1716478424202,2086375.06964548,0.00013,2]
[327786953,1716478435402,8189.43028068,9e-05,2]
[327786954,1716478444701,120018.49334339,0.000118,2]
[327786957,1716478551853,205.0,9.8e-05,2]
[327786958,1716478556054,243.12188156,0.000101,2]
[327786959,1716478594228,1891290.72312182,0.00013,2]
[327786964,1716478961627,1339.11091413,0.00017259,2]
[327786965,1716479054499,14417.07864799,0.00031,120]
[327786966,1716479097544,2750.0,0.00019,2]
[327786967,1716479269830,872.84,0.00019356,2]
[327786972,1716479366071,197.21,0.00013973,2]
[327786976,1716479432161,-197.21,0.00020447,2]
[327786977,1716479432172,-557.50683026,0.00021,2]
[327786978,1716479432229,-2242.49316974,0.00021,2]
[327786979,1716479432238,-3411.12,0.00021139,2]
[327786980,1716479432248,-250.0,0.00021162,2]
[327786981,1716479432257,-250.0,0.00021285,2]
[327786982,1716479432267,-210.2,0.00021294,2]
[327786983,1716479432276,-593.0,0.000213,3]
[327786984,1716479432286,-1000.0,0.00021307,2]
[327786985,1716479432295,-1298.04,0.00021307,2]
[327786986,1716479432305,-311.0,0.00021307,2]
[327786987,1716479432317,-93914.55,0.00021307,2]
[327786988,1716479432326,-792.55,0.00021461,2]
[327786989,1716479432336,-2000.0,0.0002147,2]
[327786990,1716479432354,-318.81,0.0002147,2]
[327786991,1716479432365,-1645.04,0.00021497,2]
[327786992,1716479432374,-158.22,0.00021523,2]
[327786993,1716479432384,-150.0,0.00021589,2]
[327786994,1716479432397,-198.92,0.00021608,2]
[327786995,1716479432407,-872.84,0.0002162,2]
[327786996,1716479432419,-1165.9,0.00021626,2]
[327786997,1716479432429,-150.99,0.00021626,2]
[327786998,1716479432439,-158.22,0.00021747,2]
[327786999,1716479432448,-499.99,0.00021773,2]
[327787000,1716479432458,-10944.05590667,0.00021845,2]
[327787001,1716479432471,-6144.45409333,0.00021845,2]
[327787002,1716479432480,-501.40138123,0.000219,2]
[327787003,1716479432491,-879.73,0.00021901,2]
[327787004,1716479432501,-1538.22553916,0.00021905,2]
[327787005,1716479432513,-256.269,0.00021905,2]
[327787006,1716479432535,-552.22746084,0.00021905,2]
[327787007,1716479432544,-153.08128891,0.00021905,2]
[327787008,1716479432578,-846.90871109,0.00021905,2]
[327787009,1716479432588,-4688.31,0.00021905,2]
[327787010,1716479432599,-198.81,0.00021918,2]
[327787011,1716479432609,-2000.0,0.00021918,2]
[327787012,1716479432619,-158.22,0.00021972,2]
[327787013,1716479432629,-404.31,0.00021974,2]
[327787014,1716479432639,-153.22067183,0.00022136,2]
[327787015,1716479432651,-151.56768367,0.00022147,2]
[327787016,1716479432660,-158.22,0.00022196,2]
[327787017,1716479432673,-153.22067183,0.00022196,2]
[327787018,1716479432683,-153.22067183,0.00022251,2]
[327787019,1716479432693,-158.22,0.0002242,2]
[327787020,1716479432703,-199.59753316,0.00022573,2]
[327787021,1716479432713,-158.22,0.00022645,2]
[327787022,1716479432723,-1103.75,0.00022788,2]
[327787023,1716479432733,-9178.96,0.00022788,2]
[327787024,1716479432743,-151.31470383,0.00022839,2]
[327787025,1716479432753,-430.59639277,0.000229,5]
[327787026,1716479432819,-1097.14743919,0.000229,5]
[327787056,1716479438169,-352.15332511,0.00021131,2]
[327787057,1716479438183,-494.26225114,0.00021131,2]
[327787058,1716479438196,-758.18724264,0.00021131,2]
[327787059,1716479438295,-40.09718111,0.00021131,2]
[327787060,1716479438304,-833.57182681,0.000229,5]
[327787061,1716479438318,-725.30123836,0.000229,5]
[327787062,1716479438329,-638.8287995,0.000229,5]
[327787063,1716479438340,-2066.82412814,0.000229,5]
[327787064,1716479438353,-598.20238517,0.000229,5]
[327787065,1716479438364,-425.12106461,0.000229,5]
[327787066,1716479438375,-1383.62132545,0.000229,5]
[327787067,1716479438385,-628.95220381,0.00023,2]
[327787068,1716479438399,-2221.04779619,0.00023,2]
[327787069,1716479438410,-842.04,0.00023008,2]
[327787070,1716479438419,-421.02,0.00023008,2]
[327787071,1716479438429,-153.3265387,0.00023029,2]
[327787072,1716479438439,-152.20246737,0.00023131,2]
[327787073,1716479438449,-794.2984,0.00023169,2]
[327787074,1716479438458,-31625.13036439,0.00023181,2]
[327787075,1716479438468,-452.48154202,0.00023181,2]
[327787076,1716479438478,-292.45877884,0.00023267,2]
[327787077,1716479438487,-8199.33257098,0.00023267,2]
[327787078,1716479438497,-3028.08891016,0.00023267,2]
[327787079,1716479438507,-576.97713249,0.00023268,2]
[327787081,1716479438516,-607.51,0.00023268,2]
[327787082,1716479438526,-500.0,0.00023268,2]
[327787083,1716479438536,-500.0,0.00023268,2]
[327787084,1716479438546,-500.0,0.00023268,2]
[327787085,1716479438555,-60161.34064201,0.00023269,2]
[327787086,1716479438575,-957.42197719,0.00023269,2]
[327787087,1716479438586,-710.4177071,0.00023269,2]
[327787088,1716479438601,-789.66254199,0.00023269,2]
[327787089,1716479438613,-721.65124612,0.00023269,2]
[327787090,1716479438632,-756.96152999,0.00023269,2]
[327787091,1716479438650,-43750.79270942,0.00023269,2]
[327787092,1716479438659,-151.31470383,0.00023281,2]
[327787093,1716479438669,-1538.47266373,0.00023338,2]
[327787094,1716479438681,-2887.25281825,0.00023338,2]
[327787095,1716479438690,-452.48154197,0.00023355,2]
[327787096,1716479438700,-153.55433201,0.00023364,2]
[327787097,1716479438709,-151.56768367,0.00023403,2]
[327787098,1716479438719,-1444.5740187,0.00023421,2]
[327787099,1716479438730,-1442.89543255,0.00023421,2]
[327787113,1716479441101,-325.93999993,0.00023421,2]
[327787114,1716479441162,-7678.52639997,0.00023421,2]
[327787115,1716479441173,-852.53746078,0.00023421,2]
[327787116,1716479441226,-701.51549898,0.00023421,2]
[327787117,1716479441237,-705.52366333,0.00023421,2]
[327787118,1716479441248,-645.10319205,0.00023421,2]
[327787119,1716479442869,-2731.445,0.00023421,2]
[327787120,1716479442976,-3833.50000002,0.00023421,2]
[327787140,1716479443440,-434.79588774,0.00023421,2]
[327787142,1716479443453,-585.53831616,0.00023421,2]
[327787144,1716479443467,-5330.0,0.00023421,2]
[327787147,1716479443479,-2185.16867197,0.00023421,2]
[327787150,1716479443490,-677.92670069,0.00023421,2]
[327787209,1716479445344,-2050.14012143,0.00023421,2]
[327787210,1716479445355,-153.22067183,0.00023422,2]
[327787211,1716479445364,-4425.72548196,0.00023519,2]
[327787212,1716479445374,-153.22067183,0.00023522,2]
[327787213,1716479445384,-452.48154197,0.00023529,2]
[327787214,1716479445395,-607.51,0.00023542,3]
[327787215,1716479445404,-500.0,0.00023542,3]
[327787216,1716479445414,-500.0,0.00023542,3]
[327787217,1716479445424,-500.0,0.00023542,3]
[327787218,1716479445434,-153.65,0.00023562,2]
[327787219,1716479445443,-153.22067183,0.00023575,2]
[327787220,1716479445453,-500.0,0.00023655,2]
[327787221,1716479445463,-500.0,0.00023655,2]
[327787222,1716479445473,-500.0,0.00023655,2]
[327787223,1716479445482,-500.0,0.00023655,2]
[327787224,1716479445492,-500.0,0.00023655,2]
[327787225,1716479445501,-568.40523769,0.00023655,2]
[327787226,1716479445511,-500.0,0.00023655,2]
[327787227,1716479445521,-1071.09,0.00023655,2]
[327787228,1716479445532,-526.1,0.00023655,2]
[327787229,1716479445542,-500.0,0.00023655,2]
[327787230,1716479445552,-971.54,0.00023655,2]
[327787231,1716479445562,-1319.89,0.00023655,2]
[327787232,1716479445572,-593.12,0.00023655,2]
[327787233,1716479445583,-500.0,0.00023655,2]
[327787234,1716479445592,-500.0,0.00023655,2]
[327787235,1716479445602,-500.0,0.00023655,2]
[327787236,1716479445611,-500.0,0.00023655,2]
[327787237,1716479445620,-500.0,0.00023655,2]
[327787238,1716479445630,-525.84,0.00023655,2]
[327787239,1716479445640,-1119.26,0.00023655,2]
[327787240,1716479445649,-737.39,0.00023655,2]
[327787241,1716479445659,-592.65,0.00023655,2]
[327787242,1716479445668,-696.91,0.00023655,2]
[327787243,1716479445678,-500.0,0.00023655,2]
[327787244,1716479445689,-500.0,0.00023655,2]
[327787245,1716479445698,-500.0,0.00023655,2]
[327787246,1716479445707,-500.0,0.00023656,2]
[327787247,1716479445717,-500.0,0.00023656,2]
[327787248,1716479445727,-500.0,0.00023656,2]
[327787249,1716479445737,-500.0,0.00023656,2]
[327787250,1716479445747,-500.0,0.00023656,2]
[327787251,1716479445757,-500.0,0.00023656,2]
[327787252,1716479445766,-239.05138011,0.00023656,2]
[327787253,1716479445776,-500.0,0.00023656,2]
[327787254,1716479445786,-500.0,0.00023656,2]
[327787255,1716479445795,-250.24998662,0.00023656,2]
[327787256,1716479445804,-500.0,0.00023656,2]
[327787257,1716479445814,-6995.01,0.00023656,2]
[327787260,1716479446001,-500.0,0.00023656,2]
[327787261,1716479446011,-354.29541808,0.00023656,2]
[327787262,1716479446021,-500.0,0.00023656,2]
[327787263,1716479446031,-500.0,0.00023656,2]
[327787264,1716479446040,-500.0,0.00023656,2]
[327787265,1716479446050,-500.0,0.00023656,2]
[327787266,1716479446060,-608.46785942,0.00023656,2]
[327787267,1716479446069,-1204.83,0.00023656,2]
[327787268,1716479446079,-211.80690603,0.00023656,2]
[327787269,1716479446094,-288.19309397,0.00023656,2]
[327787270,1716479446104,-736.26,0.00023656,2]
[327787271,1716479446113,-500.0,0.00023656,2]
[327787272,1716479446124,-500.0,0.00023656,2]
[327787273,1716479446134,-500.0,0.00023656,2]
[327787274,1716479446144,-500.0,0.00023656,2]
[327787275,1716479446153,-500.0,0.00023656,2]
[327787276,1716479446162,-543.2,0.00023656,2]
[327787277,1716479446171,-372.96243134,0.00023656,2]
[327787278,1716479446181,-621.12509009,0.00023656,2]
[327787279,1716479446193,-500.0,0.00023656,2]
[327787280,1716479446203,-500.0,0.00023656,2]
[327787281,1716479446212,-500.0,0.00023656,2]
[327787282,1716479446221,-500.0,0.00023656,2]
[327787283,1716479446230,-500.0,0.00023656,2]
[327787284,1716479446240,-594.06,0.00023656,2]
[327787285,1716479446250,-500.0,0.00023656,2]
[327787286,1716479446259,-500.0,0.00023656,2]
[327787287,1716479446269,-500.0,0.00023656,2]
[327787288,1716479446279,-583.20808765,0.00023656,2]
[327787289,1716479446289,-500.0,0.00023656,2]
[327787290,1716479446299,-500.0,0.00023656,2]
[327787291,1716479446310,-944.08,0.00023656,2]
[327787292,1716479446327,-807.64,0.00023656,2]
[327787293,1716479446342,-500.0,0.00023656,2]
[327787294,1716479446352,-539.58553394,0.00023656,2]
[327787295,1716479446361,-1490.09,0.00023656,2]
[327787296,1716479446371,-500.0,0.00023656,2]
[327787297,1716479446381,-601.77018578,0.00023656,2]
[327787298,1716479446390,-689.21935,0.0002366,2]
[327787299,1716479446400,-9814.94078311,0.00023661,2]
[327787300,1716479446413,-2430.1945919,0.00023661,2]
[327787301,1716479446459,-0.00226104,0.00023661,2]
[327787302,1716479446470,-738.04913767,0.00023661,2]
[327787303,1716479446482,-5939.45212974,0.00023661,2]